fUST/lending_fUST_20240706
["ID","MTS","AMOUNT","RATE_DAILY","PERIOD"]
[331307204,1720206694188,-500.0,0.00049863,120]
[331307205,1720206694198,-500.0,0.00049863,120]
[331307206,1720206694207,-500.0,0.00049863,120]
[331307207,1720206694218,-500.0,0.00049863,120]
[331307208,1720206694228,-500.0,0.00049863,120]
[331307209,1720206694237,-500.0,0.00049863,120]
[331307210,1720206694247,-500.0,0.00049863,120]
[331307211,1720206694256,-500.0,0.00049863,120]
[331307212,1720206694266,-500.0,0.00049863,120]
[331307213,1720206694275,-500.0,0.00049863,120]
[331307214,1720206694285,-506.08957986,0.00049863,120]
[331307215,1720206694295,-500.0,0.00049863,120]
[331307216,1720206694304,-500.0,0.00049863,120]
[331307217,1720206694313,-403.59300396,0.00049863,120]
[331307218,1720206694322,-500.0,0.00049863,120]
[331307219,1720206694332,-500.0,0.00049863,120]
[331307220,1720206694342,-544.1989218,0.00049863,120]
[331307221,1720206694351,-323.58278056,0.00049863,120]
[331307222,1720206694361,-500.0,0.00049863,120]
[331307223,1720206694371,-500.0,0.00049863,120]
[331307224,1720206694380,-501.01852435,0.00049863,120]
[331307225,1720206694389,-500.0,0.00049863,120]
[331307226,1720206694399,-500.0,0.00049863,120]
[331307227,1720206694408,-343.74671265,0.00049863,120]
[331307228,1720206694419,-500.0,0.00049863,120]
[331307229,1720206694428,-622.57,0.00049863,120]
[331307230,1720206694437,-522.6258309,0.00049863,120]
[331307231,1720206694447,-530.09972899,0.00049863,120]
[331307232,1720206694598,-1632.66,0.00049863,120]
[331307233,1720206694608,-500.0,0.00049863,120]
[331307234,1720206694618,-742.15,0.00049863,120]
[331307235,1720206694627,-620.32,0.00049863,120]
[331307236,1720206694639,-300.0,0.00049863,120]
[331307237,1720206694648,-500.0,0.00049863,120]
[331307238,1720206694659,-1768.78,0.00049863,120]
[331307239,1720206694668,-500.0,0.00049863,120]
[331307240,1720206694678,-683.75,0.00049863,120]
[331307241,1720206694688,-500.0,0.00049863,120]
[331307242,1720206694697,-500.0,0.00049863,120]
[331307243,1720206694706,-500.0,0.00049863,120]
[331307244,1720206694716,-500.0,0.00049863,120]
[331307245,1720206694725,-712.01,0.00049863,120]
[331307246,1720206694735,-500.0,0.00049863,120]
[331307247,1720206694745,-761.74,0.00049863,120]
[331307248,1720206694754,-1991.26,0.00049863,120]
[331307249,1720206694763,-500.0,0.00049863,120]
[331307250,1720206694776,-500.0,0.00049863,120]
[331307251,1720206694785,-620.99,0.00049863,120]
[331307252,1720206694795,-501.64977003,0.00049863,120]
[331307253,1720206694804,-4001.72,0.00049863,120]
[331307254,1720206694815,-474.15461902,0.00049863,120]
[331307255,1720206694824,-3810.29,0.00049863,120]
[331307256,1720206694834,-238.46056608,0.00049863,120]
[331307257,1720206694843,-500.0,0.00049863,120]
[331307258,1720206694853,-500.0,0.00049863,120]
[331307259,1720206694862,-500.0,0.00049863,120]
[331307260,1720206694874,-500.0,0.00049863,120]
[331307261,1720206694884,-500.0,0.00049863,120]
[331307262,1720206694894,-500.0,0.00049863,120]
[331307263,1720206694903,-500.0,0.00049863,120]
[331307264,1720206694912,-4325.75,0.00049863,120]
[331307265,1720206694921,-500.0,0.00049863,120]
[331307266,1720206694930,-500.0,0.00049863,120]
[331307267,1720206694939,-500.0,0.00049863,120]
[331307268,1720206694948,-500.31485602,0.00049863,120]
[331307269,1720206694957,-592.14,0.00049863,120]
[331307270,1720206694966,-642.84,0.00049863,120]
[331307271,1720206694978,-1105.61,0.00049863,120]
[331307272,1720206694988,-500.0,0.00049863,120]
[331307273,1720206694998,-500.0,0.00049863,120]
[331307274,1720206695008,-500.0,0.00049863,120]
[331307275,1720206695018,-500.0,0.00049863,120]
[331307276,1720206695027,-500.0,0.00049863,120]
[331307277,1720206695036,-500.0,0.00049863,120]
[331307278,1720206695046,-304.68093541,0.00049863,120]
[331307279,1720206695055,-500.0,0.00049863,120]
[331307280,1720206695064,-500.0,0.00049863,120]
[331307281,1720206695074,-500.0,0.00049863,120]
[331307282,1720206695083,-500.0,0.00049863,22]
[331307283,1720206695093,-500.0,0.00049863,120]
[331307284,1720206695102,-500.0,0.00049863,120]
[331307285,1720206695111,-500.0,0.00049863,120]
[331307286,1720206695120,-543.39112696,0.00049863,120]
[331307287,1720206695130,-500.0,0.00049863,120]
[331307288,1720206695139,-1081.83,0.00049863,120]
[331307289,1720206695149,-500.0,0.00049863,120]
[331307290,1720206695160,-500.0,0.00049863,120]
[331307291,1720206695169,-500.0,0.00049863,120]
[331307292,1720206695182,-535.69,0.00049863,120]
[331307293,1720206695191,-2443.75,0.00049863,120]
[331307294,1720206695201,-500.0,0.00049863,120]
[331307295,1720206695212,-1454.27,0.00049863,120]
[331307296,1720206695222,-1837.33,0.00049863,120]
[331307297,1720206695231,-500.0,0.00049863,120]
[331307298,1720206695241,-500.0,0.00049863,120]
[331307299,1720206695251,-500.0,0.00049863,120]
[331307300,1720206695260,-500.0,0.00049863,120]
[331307301,1720206695270,-745.91,0.00049863,120]
[331307302,1720206695280,-500.0,0.00049863,120]
[331307303,1720206695292,-500.0,0.00049863,120]
[331307304,1720206695302,-500.0,0.00049863,120]
[331307305,1720206695311,-539.43762611,0.00049863,120]
[331307306,1720206695321,-500.0,0.00049863,120]
[331307307,1720206695331,-500.0,0.00049863,120]
[331307308,1720206695340,-500.0,0.00049863,120]
[331307309,1720206695350,-549.99,0.00049863,120]
[331307310,1720206695359,-3460.08,0.00049863,120]
[331307311,1720206695369,-362.49963504,0.00049863,120]
[331307312,1720206695378,-1459.1,0.00049863,120]
[331307313,1720206695388,-500.0,0.00049863,120]
[331307314,1720206695398,-500.0,0.00049863,120]
[331307315,1720206695408,-752.3,0.00049863,120]
[331307316,1720206695418,-500.0,0.00049863,120]
[331307317,1720206695427,-500.0,0.00049863,120]
[331307318,1720206695436,-500.0,0.00049863,120]
[331307319,1720206695445,-500.0,0.00049863,120]
[331307320,1720206695454,-842.07,0.00049863,120]
[331307321,1720206695464,-500.0,0.00049863,120]
[331307322,1720206695473,-500.0,0.00049863,120]
[331307323,1720206695483,-500.0,0.00049863,120]
[331307324,1720206695492,-500.0,0.00049863,120]
[331307325,1720206695501,-9922.07,0.00049863,120]
[331307326,1720206695511,-500.0,0.00049863,120]
[331307327,1720206695520,-500.0,0.00049863,120]
[331307328,1720206695529,-851.17,0.00049863,120]
[331307329,1720206695539,-7492.78,0.00049863,120]
[331307330,1720206695549,-510.16255138,0.00049863,120]
[331307331,1720206695558,-500.0,0.00049863,120]
[331307332,1720206695567,-500.0,0.00049863,120]
[331307333,1720206695576,-388.70215412,0.00049863,120]
[331307334,1720206695586,-314.62504873,0.00049863,120]
[331307335,1720206695596,-318.90391145,0.00049863,120]
[331307336,1720206695605,-5800.05,0.00049863,120]
[331307337,1720206695615,-512.09116255,0.00049863,120]
[331307338,1720206695624,-500.0,0.00049863,120]
[331307339,1720206695635,-500.0,0.00049863,120]
[331307340,1720206695645,-168.12840287,0.00049863,120]
[331307341,1720206695654,-500.0,0.00049863,120]
[331307342,1720206695664,-1802.57,0.00049863,120]
[331307343,1720206695673,-500.0,0.00049863,120]
[331307344,1720206695682,-500.0,0.00049863,120]
[331307345,1720206695691,-500.0,0.00049863,120]
[331307346,1720206695701,-500.0,0.00049863,120]
[331307347,1720206695710,-500.0,0.00049863,120]
[331307348,1720206695719,-500.0,0.00049863,120]
[331307349,1720206695728,-500.0,0.00049863,120]
[331307350,1720206695738,-500.0,0.00049863,120]
[331307351,1720206695748,-500.0,0.00049863,120]
[331307352,1720206695757,-500.0,0.00049863,120]
[331307353,1720206695767,-500.0,0.00049863,120]
[331307354,1720206695782,-500.0,0.00049863,120]
[331307355,1720206695791,-553.14647283,0.00049863,120]
[331307356,1720206695800,-663.25,0.00049863,120]
[331307357,1720206695809,-500.0,0.00049863,120]
[331307358,1720206695819,-1833.61,0.00049863,120]
[331307359,1720206695829,-500.0,0.00049863,120]
[331307360,1720206695838,-500.0,0.00049863,120]
[331307361,1720206695847,-756.39,0.00049863,120]
[331307362,1720206695860,-500.0,0.00049863,120]
[331307363,1720206695871,-502.42033999,0.00049863,120]
[331307364,1720206695880,-500.0,0.00049863,120]
[331307365,1720206695889,-500.0,0.00049863,120]
[331307366,1720206695899,-500.0,0.00049863,120]
[331307367,1720206695908,-500.0,0.00049863,120]
[331307368,1720206695919,-7628.12,0.00049863,120]
[331307369,1720206695928,-1266.72,0.00049863,120]
[331307370,1720206695938,-842.46,0.00049863,120]
[331307371,1720206695947,-1064.97,0.00049863,120]
[331307372,1720206695958,-1841.02,0.00049863,120]
[331307373,1720206695969,-500.0,0.00049863,120]
[331307374,1720206695979,-500.0,0.00049863,120]
[331307375,1720206695989,-500.0,0.00049863,120]
[331307376,1720206695999,-500.0,0.00049863,120]
[331307377,1720206696008,-500.0,0.00049863,120]
[331307378,1720206696018,-292.863491,0.00049863,120]
[331307379,1720206696029,-500.0,0.00049863,120]
[331307380,1720206696039,-595.44,0.00049863,120]
[331307381,1720206696048,-559.79397991,0.00049863,120]
[331307382,1720206696057,-842.07,0.00049863,120]
[331307383,1720206696067,-500.0,0.00049863,120]
[331307384,1720206696077,-1792.59,0.00049863,120]
[331307385,1720206696087,-500.0,0.00049863,120]
[331307386,1720206696096,-500.0,0.00049863,120]
[331307387,1720206696106,-660.5,0.00049863,120]
[331307388,1720206696115,-7850.86,0.00049863,120]
[331307389,1720206696125,-501.54342458,0.00049863,120]
[331307390,1720206696135,-500.0,0.00049863,120]
[331307391,1720206696144,-500.0,0.00049863,120]
[331307392,1720206696154,-2988.27,0.00049863,21]
[331307393,1720206696164,-909.34,0.00049863,120]
[331307394,1720206696174,-500.0,0.00049863,120]
[331307395,1720206696183,-500.0,0.00049863,120]
[331307396,1720206696193,-500.0,0.00049863,120]
[331307397,1720206696202,-511.8,0.00049863,120]
[331307398,1720206696212,-500.0,0.00049863,120]
[331307399,1720206696224,-500.0,0.00049863,120]
[331307400,1720206696234,-1389.78,0.00049863,120]
[331307401,1720206696245,-500.0,0.00049863,120]
[331307402,1720206696255,-500.0,0.00049863,120]
[331307403,1720206696371,-1165.51,0.00049863,120]
[331307404,1720206696381,-876.01,0.00049863,120]
[331307405,1720206696391,-5056.8,0.00049863,120]
[331307406,1720206696400,-500.0,0.00049863,120]
[331307407,1720206696410,-500.0,0.00049863,120]
[331307408,1720206696419,-500.0,0.00049863,120]
[331307409,1720206696429,-691.5,0.00049863,120]
[331307410,1720206696438,-500.0,0.00049863,120]
[331307411,1720206696447,-500.0,0.00049863,120]
[331307412,1720206696456,-518.49,0.00049863,120]
[331307413,1720206696465,-500.0,0.00049863,120]
[331307414,1720206696475,-500.0,0.00049863,120]
[331307415,1720206696485,-305.20213695,0.00049863,120]
[331307416,1720206696495,-504.90985655,0.00049863,120]
[331307417,1720206696504,-3968.12,0.00049863,120]
[331307418,1720206696513,-516.42583207,0.00049863,120]
[331307419,1720206696523,-575.33,0.00049863,120]
[331307420,1720206696532,-500.0,0.00049863,120]
[331307421,1720206696541,-500.0,0.00049863,120]
[331307422,1720206696550,-507.32357679,0.00049863,120]
[331307423,1720206696559,-1442.77,0.00049863,120]
[331307424,1720206696568,-563.67645009,0.00049863,120]
[331307425,1720206696577,-500.0,0.00049863,120]
[331307426,1720206696586,-689.65,0.00049863,120]
[331307427,1720206696595,-500.0,0.00049863,120]
[331307428,1720206696605,-500.0,0.00049863,120]
[331307429,1720206696615,-3515.73,0.00049863,120]
[331307430,1720206696624,-197.24921871,0.00049999,31]
[331307431,1720206696635,-500.0,0.00049999,120]
[331307432,1720206696645,-500.0,0.00049999,120]
[331307433,1720206696656,-500.0,0.00049999,120]
[331307434,1720206696666,-500.0,0.00049999,120]
[331307435,1720206696676,-10000.0,0.0005,50]
[331307436,1720206696689,-970.639712,0.0005,10]
[331307437,1720206696698,-154.88383712,0.0005,30]
[331307438,1720206696708,-523.61998014,0.0005,120]
[331307439,1720206696717,-600.0,0.0005,120]
[331307440,1720206696727,-4308.03496036,0.0005,60]
[331307441,1720206696736,-535.42647147,0.0005,7]
[331307442,1720206696745,-154.79103211,0.0005,4]
[331307443,1720206696755,-3000.0,0.00050014,120]
[331307444,1720206696764,-500.0,0.0005041,120]
[331307445,1720206696777,-500.0,0.0005041,120]
[331307446,1720206696786,-500.0,0.0005041,120]
[331307447,1720206696795,-500.0,0.0005041,120]
[331307448,1720206696804,-500.0,0.0005041,120]
[331307449,1720206696815,-509.06935757,0.0005041,120]
[331307450,1720206696824,-613.4,0.0005041,120]
[331307451,1720206696833,-500.0,0.0005041,120]
[331307452,1720206696844,-500.0,0.0005041,120]
[331307453,1720206696856,-355.70518318,0.0005041,120]
[331307454,1720206696869,-500.0,0.0005041,120]
[331307455,1720206696879,-500.0,0.0005041,120]
[331307456,1720206696888,-504.41982607,0.0005041,120]
[331307457,1720206696899,-500.0,0.0005041,120]
[331307458,1720206696908,-500.0,0.0005041,120]
[331307459,1720206696917,-504.25480397,0.0005041,120]
[331307460,1720206696927,-500.0,0.0005041,120]
[331307461,1720206696936,-509.77269587,0.0005041,120]
[331307462,1720206696946,-500.0,0.0005041,120]
[331307463,1720206696955,-500.0,0.0005041,120]
[331307464,1720206696965,-941.88,0.0005041,120]
[331307465,1720206696974,-500.0,0.0005041,120]
[331307466,1720206696983,-611.08,0.0005041,120]
[331307467,1720206696993,-500.0,0.0005041,120]
[331307468,1720206697002,-300.07414673,0.0005041,120]
[331307469,1720206697012,-513.66557068,0.0005041,120]
[331307470,1720206697021,-500.0,0.0005041,120]
[331307471,1720206697030,-500.0,0.0005041,3]
[331307472,1720206697039,-500.0,0.0005041,120]
[331307473,1720206697048,-500.0,0.0005041,120]
[331307474,1720206697057,-500.0,0.0005041,120]
[331307475,1720206697067,-500.0,0.0005041,120]
[331307476,1720206697076,-500.0,0.0005041,120]
[331307477,1720206697085,-500.0,0.0005041,120]
[331307478,1720206697095,-500.0,0.0005041,120]
[331307479,1720206697104,-500.0,0.0005041,120]
[331307480,1720206697114,-500.0,0.0005041,120]
[331307481,1720206697124,-500.0,0.0005041,120]
[331307482,1720206697143,-632.77,0.0005041,120]
[331307483,1720206697163,-500.0,0.0005041,120]
[331307484,1720206697184,-401.18877211,0.0005041,120]
[331307485,1720206697204,-311.51446554,0.0005041,120]
[331307486,1720206697227,-500.0,0.0005041,30]
[331307487,1720206697244,-1902.81,0.0005041,60]
[331307488,1720206697263,-500.0,0.0005041,120]
[331307489,1720206697277,-500.0,0.0005041,120]
[331307490,1720206697295,-518.24989507,0.0005041,120]
[331307491,1720206697317,-500.0,0.0005041,120]
[331307492,1720206697330,-500.0,0.0005041,120]
[331307493,1720206697347,-500.0,0.0005041,120]
[331307494,1720206697363,-692.3,0.0005041,120]
[331307495,1720206697379,-500.0,0.0005041,120]
[331307496,1720206697395,-500.0,0.0005041,120]
[331307497,1720206697408,-500.0,0.0005041,120]
[331307498,1720206697423,-500.0,0.0005041,120]
[331307499,1720206697437,-500.0,0.0005041,120]
[331307500,1720206697450,-500.0,0.0005041,120]
[331307501,1720206697465,-500.0,0.0005041,120]
[331307502,1720206697481,-500.0,0.0005041,120]
[331307503,1720206697496,-500.0,0.0005041,7]
[331307504,1720206697511,-605.23,0.0005041,120]
[331307505,1720206697525,-500.0,0.0005041,120]
[331307506,1720206697540,-500.0,0.0005041,120]
[331307507,1720206697555,-500.0,0.0005041,120]
[331307508,1720206697569,-500.0,0.0005041,120]
[331307509,1720206697584,-500.0,0.0005041,120]
[331307510,1720206697599,-500.0,0.0005041,120]
[331307511,1720206697613,-500.0,0.0005041,120]
[331307512,1720206697627,-500.0,0.0005041,120]
[331307513,1720206697642,-500.0,0.0005041,120]
[331307514,1720206697656,-500.0,0.0005041,120]
[331307515,1720206697671,-500.0,0.0005041,120]
[331307516,1720206697685,-511.97,0.0005041,120]
[331307517,1720206697701,-500.0,0.0005041,120]
[331307518,1720206697716,-500.0,0.0005041,120]
[331307519,1720206697731,-500.0,0.0005041,120]
[331307520,1720206697746,-500.0,0.0005041,120]
[331307521,1720206697758,-500.0,0.0005041,120]
[331307522,1720206697775,-500.0,0.0005041,120]
[331307523,1720206697790,-500.0,0.0005041,120]
[331307524,1720206697805,-500.0,0.0005041,120]
[331307525,1720206697819,-500.0,0.0005041,120]
[331307526,1720206697834,-500.0,0.0005041,120]
[331307527,1720206697848,-500.0,0.0005041,120]
[331307528,1720206697865,-404.2452815,0.0005041,120]
[331307529,1720206697881,-656.41,0.0005041,120]
[331307530,1720206697896,-500.0,0.0005041,120]
[331307531,1720206697910,-626.41,0.0005041,120]
[331307532,1720206697925,-500.0,0.0005041,120]
[331307533,1720206697940,-500.0,0.0005041,120]
[331307534,1720206697954,-500.0,0.0005041,120]
[331307535,1720206697968,-500.0,0.0005041,120]
[331307536,1720206697983,-500.0,0.0005041,120]
[331307537,1720206697996,-175.05565629,0.0005041,120]
[331307538,1720206698010,-500.0,0.0005041,3]
[331307539,1720206698025,-500.0,0.0005041,120]
[331307540,1720206698039,-500.0,0.0005041,120]
[331307541,1720206698053,-500.0,0.0005041,120]
[331307542,1720206698067,-500.0,0.0005041,120]
[331307543,1720206698082,-500.0,0.0005041,120]
[331307544,1720206698097,-514.7487565,0.0005041,120]
[331307545,1720206698112,-500.0,0.0005041,120]
[331307546,1720206698127,-500.0,0.0005041,120]
[331307547,1720206698142,-500.0,0.0005041,120]
[331307548,1720206698157,-500.0,0.0005041,120]
[331307549,1720206698174,-500.0,0.0005041,120]
[331307550,1720206698189,-453.9464164,0.0005041,30]
[331307551,1720206698204,-500.0,0.0005041,120]
[331307552,1720206698219,-500.0,0.0005041,120]
[331307553,1720206698234,-886.86,0.0005041,120]
[331307554,1720206698249,-500.0,0.0005041,120]
[331307555,1720206698264,-500.0,0.0005041,120]
[331307556,1720206698280,-705.29,0.0005041,120]
[331307557,1720206698296,-500.0,0.0005041,120]
[331307558,1720206698312,-500.0,0.0005041,120]
[331307559,1720206698326,-500.0,0.0005041,120]
[331307560,1720206698491,-500.0,0.0005041,120]
[331307561,1720206698504,-500.0,0.0005041,120]
[331307562,1720206698514,-500.0,0.0005041,120]
[331307563,1720206698524,-500.0,0.0005041,20]
[331307564,1720206698533,-500.0,0.0005041,120]
[331307565,1720206698543,-721.6,0.0005041,120]
[331307566,1720206698552,-500.0,0.0005041,120]
[331307567,1720206698561,-516.16345102,0.0005041,120]
[331307568,1720206698571,-520.99,0.0005041,120]
[331307569,1720206698580,-500.0,0.0005041,120]
[331307570,1720206698590,-1085.28,0.0005041,120]
[331307571,1720206698599,-500.0,0.0005041,120]
[331307572,1720206698609,-500.0,0.0005041,120]
[331307573,1720206698618,-500.0,0.0005041,120]
[331307574,1720206698628,-362.78,0.0005041,120]
[331307575,1720206698638,-500.0,0.0005041,120]
[331307576,1720206698648,-422.04739732,0.0005041,120]
[331307577,1720206698658,-465.04205338,0.0005041,120]
[331307578,1720206698668,-500.0,0.0005041,120]
[331307579,1720206698677,-1000.0,0.0005041,120]
[331307580,1720206698687,-1785.4,0.0005041,120]
[331307581,1720206698697,-500.0,0.0005041,120]
[331307582,1720206698707,-500.0,0.0005041,120]
[331307583,1720206698716,-500.0,0.0005041,120]
[331307584,1720206698726,-500.0,0.0005041,120]
[331307585,1720206698736,-500.0,0.0005041,120]
[331307586,1720206698746,-500.0,0.0005041,120]
[331307587,1720206698755,-15075.9,0.0005041,120]
[331307588,1720206698765,-506.69870733,0.0005041,120]
[331307589,1720206698779,-520.53,0.0005041,120]
[331307590,1720206698790,-235.80536369,0.0005041,120]
[331307591,1720206698799,-500.0,0.0005041,120]
[331307592,1720206698808,-500.0,0.0005041,120]
[331307593,1720206698818,-500.0,0.0005041,120]
[331307594,1720206698828,-754.02,0.0005041,120]
[331307595,1720206698838,-500.0,0.0005041,120]
[331307596,1720206698848,-500.0,0.0005041,120]
[331307597,1720206698859,-1267.05,0.0005041,120]
[331307598,1720206698870,-1964.53,0.0005041,120]
[331307599,1720206698880,-500.0,0.0005041,120]
[331307600,1720206698890,-617.24,0.0005041,120]
[331307601,1720206698900,-500.0,0.0005041,120]
[331307602,1720206698910,-504.36699999,0.0005041,120]
[331307603,1720206698919,-1740.94,0.0005041,120]
[331307604,1720206698929,-500.0,0.0005041,120]
[331307605,1720206698939,-500.0,0.0005041,120]
[331307606,1720206698948,-500.0,0.0005041,120]
[331307607,1720206698957,-282.59188146,0.0005041,120]
[331307608,1720206698967,-500.0,0.0005041,120]
[331307609,1720206698977,-500.0,0.0005041,120]
[331307610,1720206698986,-500.0,0.0005041,120]
[331307611,1720206698995,-518.22,0.0005041,120]
[331307612,1720206699004,-500.0,0.0005041,120]
[331307613,1720206699014,-500.0,0.0005041,120]
[331307614,1720206699024,-821.59,0.0005041,120]
[331307615,1720206699036,-506.42652983,0.0005041,120]
[331307616,1720206699046,-768.22,0.0005041,120]
[331307617,1720206699058,-500.0,0.0005041,120]
[331307618,1720206699072,-571.67,0.0005041,120]
[331307619,1720206699098,-500.0,0.0005041,120]
[331307620,1720206699108,-500.0,0.0005041,120]
[331307621,1720206699119,-500.0,0.0005041,120]
[331307622,1720206699130,-500.0,0.0005041,120]
[331307623,1720206699140,-515.82,0.0005041,120]
[331307624,1720206699151,-500.0,0.0005041,120]
[331307625,1720206699162,-282.85,0.0005041,7]
[331307626,1720206699173,-500.0,0.0005041,120]
[331307627,1720206699183,-15336.98,0.0005041,120]
[331307628,1720206699194,-500.0,0.0005041,120]
[331307629,1720206699204,-1339.72,0.0005041,120]
[331307630,1720206699214,-500.0,0.0005041,120]
[331307631,1720206699224,-501.86604317,0.0005041,120]
[331307632,1720206699234,-500.0,0.0005041,120]
[331307633,1720206699244,-500.0,0.0005041,120]
[331307634,1720206699254,-500.0,0.0005041,120]
[331307635,1720206699264,-500.0,0.0005041,120]
[331307636,1720206699275,-500.0,0.0005041,120]
[331307637,1720206699285,-1218.28,0.0005041,120]
[331307638,1720206699296,-500.0,0.0005041,120]
[331307639,1720206699306,-500.0,0.0005041,120]
[331307640,1720206699316,-500.0,0.0005041,120]
[331307641,1720206699326,-567.90029496,0.0005041,120]
[331307642,1720206699335,-527.64,0.0005041,120]
[331307643,1720206699345,-500.0,0.0005041,120]
[331307644,1720206699355,-528.45,0.0005041,120]
[331307645,1720206699365,-801.56,0.0005041,120]
[331307646,1720206699375,-1952.88,0.0005041,120]
[331307647,1720206699384,-510.49143922,0.0005041,30]
[331307648,1720206699393,-500.0,0.0005041,120]
[331307649,1720206699404,-1193.59,0.0005041,120]
[331307650,1720206699414,-982.74,0.0005041,120]
[331307651,1720206699423,-368.78620664,0.0005041,120]
[331307652,1720206699433,-500.0,0.0005041,120]
[331307653,1720206699443,-500.0,0.0005041,120]
[331307654,1720206699454,-868.68,0.0005041,120]
[331307655,1720206699464,-500.0,0.0005041,120]
[331307656,1720206699474,-500.0,0.0005041,120]
[331307657,1720206699483,-500.0,0.0005041,120]
[331307658,1720206699493,-500.0,0.0005041,120]
[331307659,1720206699503,-500.0,0.0005041,120]
[331307660,1720206699513,-500.0,0.0005041,120]
[331307661,1720206699523,-855.23,0.0005041,120]
[331307662,1720206699533,-471.00978429,0.0005041,120]
[331307663,1720206699543,-976.04853737,0.0005041,120]
[331307664,1720206699553,-500.0,0.0005041,120]
[331307665,1720206699563,-500.0,0.0005041,120]
[331307666,1720206699572,-500.0,0.0005041,120]
[331307667,1720206699582,-500.0,0.0005041,120]
[331307668,1720206699591,-500.0,0.0005041,2]
[331307669,1720206699601,-660.12,0.0005041,120]
[331307670,1720206699610,-500.0,0.0005041,120]
[331307671,1720206699629,-500.0,0.0005041,120]
[331307672,1720206699639,-592.27261329,0.0005041,120]
[331307673,1720206699648,-2587.07,0.0005041,120]
[331307674,1720206699658,-500.0,0.0005041,120]
[331307675,1720206699667,-504.41,0.0005041,120]
[331307676,1720206699676,-500.0,0.0005041,120]
[331307677,1720206699686,-524.87180524,0.0005041,120]
[331307678,1720206699696,-1083.21,0.0005041,120]
[331307679,1720206699705,-500.0,0.0005041,120]
[331307680,1720206699714,-633.89612101,0.0005041,120]
[331307681,1720206699724,-500.0,0.0005041,120]
[331307682,1720206699733,-500.0,0.0005041,120]
[331307683,1720206699742,-1000.0,0.0005041,90]
[331307684,1720206699752,-500.0,0.0005041,120]
[331307685,1720206699761,-500.0,0.0005041,120]
[331307686,1720206699771,-568.81,0.0005041,120]
[331307687,1720206699784,-500.0,0.0005041,120]
[331307688,1720206699793,-500.0,0.0005041,120]
[331307689,1720206699803,-500.0,0.0005041,120]
[331307690,1720206699812,-500.0,0.0005041,120]
[331307691,1720206699823,-500.0,0.0005041,120]
[331307692,1720206699832,-500.0,0.0005041,120]
[331307693,1720206699842,-500.0,0.0005041,120]
[331307694,1720206699851,-940.93,0.0005041,120]
[331307695,1720206699862,-500.0,0.0005041,120]
[331307696,1720206699873,-500.0,0.0005041,120]
[331307697,1720206699883,-1774.22,0.0005041,120]
[331307698,1720206699892,-500.0,0.0005041,60]
[331307699,1720206699901,-783.38,0.0005041,120]
[331307700,1720206699912,-608.02249025,0.0005041,120]
[331307701,1720206699923,-500.0,0.0005041,120]
[331307702,1720206699933,-500.0,0.0005041,120]
[331307703,1720206699944,-500.0,0.0005041,120]